bitfinex/quotes_ETHUSD_20260209
["timestamp","ask_amount","ask_price","bid_price","bid_amount"]
[1770626070903,0.002,2042.8,2041.4,3.90902856]
[1770626072129,0.0735222,2042.4,2041.4,0.001]
[1770626072302,0.0735222,2042.7,2041.4,0.001]
[1770626072508,0.0735222,2042.7,2041.4,3.90902856]
[1770626072705,0.002,2042.8,2041.4,3.90902856]
[1770626073135,0.0755222,2042.8,2041.4,3.90902856]
[1770626074023,0.002,2042.8,2041.6,3.90802856]
[1770626074522,0.0735222,2042.7,2041.4,0.001]
[1770626075059,1.22390571,2042.7,2041.5,3.90802856]
[1770626075661,1.22584304,2042.8,2041.5,3.90802856]
[1770626075832,1.29936524,2042.8,2041.5,3.90802856]
[1770626076159,0.0735222,2042.5,2041.4,0.001]
[1770626076375,1.29936524,2042.8,2041.4,3.90902856]
[1770626077352,1.29936524,2042.8,2041.5,3.90802856]
[1770626077659,1.22584304,2042.8,2041.5,3.90802856]
[1770626078161,1.22584304,2042.8,2041.4,1.2256473]
[1770626078162,0.002,2042.8,2041.7,3.90802856]
[1770626079163,1.22581275,2042.8,2041.7,3.90802856]
[1770626079536,0.002,2042.8,2041.8,3.90802856]
[1770626080034,0.002,2042.5,2041.8,3.90802856]
[1770626081858,0.002,2042.5,2041.9,3.90802856]
[1770626082861,0.002,2042.5,2041.6,0.001]
[1770626083156,0.002,2042.5,2041.8,3.90802856]
[1770626083354,0.002,2042.5,2041.9,3.90802856]
[1770626083759,0.002,2042.5,2042.0,3.90802856]
[1770626084159,0.002,2042.5,2041.7,1.22443864]
[1770626084362,0.002,2042.5,2041.7,1.22446385]
[1770626084565,0.002,2042.5,2041.8,3.90802856]
[1770626084752,0.002,2042.5,2041.8,1.22440907]
[1770626084953,0.002,2042.5,2042.0,3.90802856]
[1770626085153,0.002,2042.8,2042.0,3.90802856]
[1770626085760,0.002,2042.8,2042.2,4.10469808]
[1770626087373,0.002,2042.8,2041.8,4.10469808]
[1770626088744,0.002,2042.8,2041.6,0.001]
[1770626089258,0.0735222,2042.7,2041.6,0.001]
[1770626089567,0.002,2042.8,2041.7,4.10469808]
[1770626090072,0.0735222,2042.7,2041.7,4.10469808]
[1770626090665,0.002,2042.8,2041.7,4.10469808]
[1770626090862,0.0735222,2042.7,2041.6,0.001]
[1770626091375,0.002,2042.8,2041.6,4.10569808]
[1770626091872,1.22581045,2042.8,2041.6,4.10569808]
[1770626092465,0.002,2042.8,2041.9,4.10469808]
[1770626092664,0.002,2042.5,2041.9,4.10469808]
[1770626093161,0.002,2042.7,2042.1,4.10469808]
[1770626093551,0.002,2042.7,2041.7,4.10469808]
[1770626093748,0.002,2043.0,2041.7,4.10469808]
[1770626094046,0.002,2043.0,2041.6,0.001]
[1770626094047,0.0735222,2042.6,2041.6,0.001]
[1770626094362,0.0735222,2042.9,2041.6,1.22550678]
[1770626094562,0.0735222,2042.9,2041.7,4.10469808]
[1770626095070,0.002,2043.0,2041.7,5.32915538]
[1770626096065,0.002,2043.0,2041.8,4.10469808]
[1770626096454,0.002,2043.0,2042.2,4.10469808]
[1770626096980,0.002,2043.0,2042.3,0.02930999]
[1770626098376,0.002,2043.0,2042.3,4.13400807]
[1770626098766,0.002,2043.0,2042.4,4.10469808]
[1770626099069,0.002,2043.0,2042.5,0.02930711]
[1770626099284,0.002,2043.2,2042.5,4.13400519]
[1770626100255,0.002,2043.2,2042.5,5.35795187]
[1770626100455,0.002,2043.2,2042.5,0.02930711]
[1770626100651,0.002,2043.2,2042.6,0.02930567]
[1770626101177,0.002,2043.2,2042.5,0.02930567]
[1770626101377,0.002,2043.2,2042.0,4.10469808]
[1770626101578,0.002,2043.2,2042.3,4.10469808]
[1770626102077,0.002,2043.2,2042.5,5.32868758]
[1770626102273,0.002,2043.2,2042.5,5.32868228]
[1770626102584,0.002,2043.4,2042.8,4.10469808]
[1770626102765,0.002,2043.4,2043.0,4.10469808]
[1770626102960,0.002,2043.6,2043.0,4.10469808]
[1770626103285,0.002,2044.1,2043.2,4.10469808]
[1770626103787,0.002,2044.1,2043.4,4.10469808]
[1770626104155,0.002,2044.1,2043.5,1.22339124]
[1770626104360,0.002,2044.1,2043.6,4.10469808]
[1770626104666,0.35077861,2044.6,2043.8,4.10469808]
[1770626104980,1.22253486,2045.0,2043.8,4.10469808]
[1770626105200,4.96185888,2045.7,2044.0,4.10469808]
[1770626105368,4.96185888,2045.7,2044.2,4.10469808]
[1770626105369,0.0735222,2045.7,2044.2,4.10469808]
[1770626105573,0.0735222,2046.0,2044.4,4.10469808]
[1770626105768,4.88693175,2046.3,2044.6,4.10469808]
[1770626106004,4.88693175,2046.3,2044.8,4.10469808]
[1770626106321,0.0735222,2046.2,2044.8,4.10469808]
[1770626106494,1.22183666,2046.1,2044.9,4.10469808]
[1770626106668,1.22183666,2046.1,2043.3,1.64405443]
[1770626106669,0.0735222,2045.9,2043.3,1.64405443]
[1770626106875,0.0735222,2045.9,2044.5,1.22275334]
[1770626107071,0.0735222,2045.9,2044.7,4.10469808]
[1770626107272,0.0735222,2045.9,2044.5,4.10469808]
[1770626107486,0.0735222,2045.9,2044.5,5.32748428]
[1770626107798,1.22183666,2046.1,2044.8,5.32730876]
[1770626107799,1.29535886,2046.1,2044.8,5.32730876]
[1770626107999,1.29517974,2046.4,2044.9,4.10469808]
[1770626108900,0.0735222,2045.8,2044.5,4.10469808]
[1770626109202,0.0735222,2046.1,2044.7,4.10469808]
[1770626109400,0.0735222,2046.1,2045.0,4.10469808]
[1770626109599,1.29517974,2046.4,2045.0,4.10469808]
[1770626110325,1.22189638,2046.0,2045.0,4.10469808]
[1770626110534,1.22189638,2046.0,2044.6,4.10469808]
[1770626110697,0.0735222,2045.8,2044.6,4.10469808]
[1770626111626,1.22189638,2046.0,2044.8,1.22260374]
[1770626111822,1.22189638,2046.0,2044.8,4.10469808]
[1770626112123,1.22189638,2046.0,2044.8,5.32730498]
[1770626112324,1.2953254,2046.2,2045.0,4.10469808]
[1770626112821,1.2953254,2046.2,2045.0,5.32717635]
[1770626112994,1.2218032,2046.2,2045.0,5.32718884]
[1770626113194,1.2953254,2046.2,2045.0,4.10469808]
[1770626113399,1.2953254,2046.2,2045.0,5.32718223]
[1770626113609,1.2953254,2046.2,2045.0,4.10469808]
[1770626114405,0.0735222,2045.9,2044.6,4.10469808]
[1770626114610,0.0735222,2045.6,2044.1,4.10469808]
[1770626114808,0.0735222,2045.3,2044.1,4.10469808]
[1770626115123,0.0735222,2045.5,2044.1,3.76681452]
[1770626115305,0.0735222,2045.5,2043.7,3.76681452]
[1770626115306,0.0735222,2045.2,2043.7,3.76681452]
[1770626115503,0.0735222,2044.9,2043.7,3.76681452]
[1770626115703,0.0735222,2044.9,2043.8,2.084]
[1770626115909,0.0735222,2044.9,2043.8,3.76681452]
[1770626116114,3.53301705,2045.8,2043.8,3.76681452]
[1770626116115,15.26278044,2046.2,2044.1,3.76681452]
[1770626116325,0.1024,2046.1,2044.3,3.76681452]
[1770626116514,1.29535886,2046.2,2044.5,3.76681452]
[1770626116722,1.22165754,2046.5,2044.7,3.76681452]
[1770626116927,1.22165754,2046.5,2044.9,3.76681452]
[1770626118228,1.22165754,2046.5,2045.1,3.85707798]
[1770626118528,0.002,2046.7,2045.5,3.85707798]
[1770626118732,0.002,2045.9,2045.7,3.85707798]
[1770626119032,0.002,2046.7,2045.7,3.85707798]
[1770626120234,0.002,2046.7,2045.9,3.85707798]
[1770626120532,0.002,2046.7,2046.0,5.07897436]
[1770626120710,0.002,2046.7,2046.1,3.85707798]
[1770626121050,0.002,2046.7,2045.5,5.07921704]
[1770626121225,0.002,2046.7,2045.5,3.85707798]
[1770626121411,0.002,2046.7,2045.6,3.85707798]
[1770626121610,0.002,2046.7,2045.7,3.85707798]
[1770626121909,0.002,2046.7,2045.9,3.85707798]
[1770626122110,0.002,2046.7,2045.6,5.07920178]
[1770626122332,0.002,2046.7,2045.7,1.22206735]
[1770626122540,0.002,2046.7,2045.8,3.85707798]
[1770626122726,0.002,2046.7,2045.5,5.07927]
[1770626122928,0.002,2046.7,2045.6,1.22213089]
[1770626123108,0.002,2046.7,2045.6,5.07920903]
[1770626123311,0.002,2046.7,2045.7,3.85707798]
[1770626123623,0.002,2046.7,2045.3,3.85707798]
[1770626123823,0.002,2046.7,2045.5,3.85707798]
[1770626123824,0.0735222,2046.6,2045.5,3.85707798]
[1770626124025,0.0735222,2046.6,2045.0,3.85707798]
[1770626124223,0.0735222,2046.3,2045.0,3.85707798]
[1770626124422,0.0735222,2046.3,2045.0,5.07956345]
[1770626124629,1.22177695,2046.2,2045.0,3.85707798]
[1770626124824,1.22164786,2046.5,2045.1,3.85707798]
[1770626125025,0.0735222,2046.4,2045.1,3.85707798]
[1770626125225,0.0735222,2046.4,2044.8,4.89034884]
[1770626125226,0.0735222,2046.4,2044.8,5.07966396]
[1770626125430,0.0735222,2046.1,2044.8,3.85707798]
[1770626125612,0.0735222,2046.1,2044.8,5.07964544]
[1770626125814,0.0735222,2046.1,2044.9,3.85707798]
[1770626126125,0.0735222,2046.4,2045.1,4.35707798]
[1770626126333,1.22164786,2046.5,2045.1,4.35707798]
[1770626126909,1.22164786,2046.5,2045.3,3.85707798]
[1770626127811,1.22164786,2046.5,2045.0,1.22249165]
[1770626128119,0.0735222,2046.3,2044.9,3.85707798]
[1770626128531,1.22164786,2046.5,2045.1,1.22243323]
[1770626128720,1.22164786,2046.5,2045.0,1.22245473]
[1770626128927,0.0735222,2046.3,2045.0,3.85707798]
[1770626129437,0.0735222,2046.3,2045.0,5.07956213]
[1770626129753,1.22164786,2046.5,2045.1,3.85707798]
[1770626130641,0.0735222,2046.3,2044.6,3.85707798]
[1770626130833,1.22164786,2046.5,2045.5,0.001]
[1770626131037,0.0735222,2046.3,2045.5,0.001]
[1770626131434,1.22164786,2046.5,2045.5,0.001]
[1770626132116,0.0735222,2046.3,2045.5,0.001]
[1770626132746,1.22164786,2046.5,2045.5,0.001]
[1770626133652,1.22164786,2046.5,2045.5,3.85807798]
[1770626134832,0.002,2046.7,2045.5,3.85807798]
[1770626135132,0.0735222,2046.3,2045.5,0.001]
[1770626135536,0.0735222,2046.3,2044.6,4.89079979]
[1770626135537,0.0735222,2046.3,2044.7,3.85707798]
[1770626135738,11.27265649,2046.0,2044.7,3.85707798]
[1770626135939,3.46941209,2046.6,2044.9,3.85707798]
[1770626136134,0.0735222,2046.3,2044.9,0.5]
[1770626136539,0.0735222,2046.0,2044.9,0.5]
[1770626136958,0.0735222,2045.7,2044.9,0.5]
[1770626137361,1.2219561,2045.9,2044.5,3.85707798]
[1770626137530,1.2219561,2045.9,2044.6,3.85707798]
[1770626138036,0.0735222,2045.7,2044.1,5.08008074]
[1770626138232,0.0735222,2045.6,2044.4,3.85707798]
[1770626138439,0.0735222,2045.6,2044.4,5.07990175]
[1770626138643,1.2219561,2045.9,2044.5,3.85707798]
[1770626138943,1.22213531,2045.6,2044.3,8.55542898]
[1770626139262,1.22213531,2045.6,2044.2,1.22296534]
[1770626139263,1.22213531,2045.6,2044.4,3.85707798]
[1770626139453,4.96112047,2046.0,2044.4,3.85707798]
[1770626139642,1.2219561,2045.9,2044.6,3.85707798]
[1770626141363,1.2219561,2045.9,2044.7,3.85707798]
[1770626143064,4.88759827,2046.0,2044.8,1.22261345]
[1770626143258,4.88759827,2046.0,2044.9,3.85707798]
[1770626143846,4.88759827,2046.0,2044.9,3.85807798]
[1770626144660,4.88759827,2046.0,2044.9,0.001]
[1770626144838,0.0735222,2045.8,2044.9,0.001]
[1770626145746,1.22207557,2045.7,2044.9,0.001]
[1770626147258,1.29559777,2045.7,2044.9,0.001]
[1770626148155,1.22207557,2045.7,2044.9,0.001]
[1770626149051,1.29559777,2045.7,2044.9,0.001]
[1770626149749,1.22207557,2045.7,2044.9,0.001]
[1770626149950,4.88830229,2045.9,2044.9,0.001]
[1770626151681,4.88830229,2045.9,2044.9,3.73052806]
[1770626151883,4.88830229,2045.9,2044.9,0.001]
[1770626152067,1.22207557,2045.7,2044.9,0.001]
[1770626153079,1.22207557,2045.7,2044.9,3.73052806]
[1770626154058,4.88762514,2046.0,2044.9,3.73052806]
[1770626155292,4.88762514,2046.0,2044.9,0.001]
[1770626155963,4.88762514,2046.0,2044.9,3.73052806]
[1770626156581,4.88762514,2046.0,2045.0,3.72952806]
[1770626157484,1.22189638,2046.0,2045.0,3.72952806]
[1770626157657,4.88944779,2046.1,2044.9,1.22354767]
[1770626157658,1.22385097,2046.1,2044.9,0.001]
[1770626158473,1.22385097,2046.1,2044.9,3.73052806]
[1770626158674,1.22385097,2046.1,2045.1,3.73052806]
[1770626160671,0.002,2046.1,2045.1,3.73052806]
[1770626160875,0.002,2046.1,2045.1,4.95292498]
[1770626161189,0.002,2046.1,2045.2,3.72952806]
[1770626162194,0.002,2046.3,2045.6,3.72952806]
[1770626162763,0.002,2046.3,2045.8,3.72952806]
[1770626164610,0.002,2046.3,2045.1,0.001]
[1770626164897,1.22371724,2046.3,2045.1,3.73052806]
[1770626165611,0.0735222,2046.1,2045.1,0.001]
[1770626165901,0.0735222,2046.0,2045.1,0.001]
[1770626166575,10.34302775,2045.9,2044.9,0.001]
[1770626166779,10.34302775,2045.9,2044.7,3.73052806]
[1770626166780,0.0735222,2045.7,2044.7,0.001]
[1770626167482,1.22201583,2045.8,2044.7,3.73052806]
[1770626168100,1.22201583,2045.8,2044.8,3.72952806]
[1770626168304,1.22189638,2046.0,2044.8,3.72952806]
[1770626168514,1.22372122,2046.3,2045.3,3.72952806]
[1770626168883,0.002,2046.3,2045.3,4.95182378]
[1770626169186,0.002,2046.3,2045.4,3.72952806]
[1770626169586,0.002,2046.3,2044.9,1.2225034]
[1770626169587,0.0735222,2046.2,2044.9,3.72952806]
[1770626169897,0.0735222,2046.2,2045.0,3.72952806]
[1770626170821,1.22183666,2046.1,2045.0,3.72952806]
[1770626170986,1.22183666,2046.1,2045.1,0.001]
[1770626171379,1.22383666,2046.1,2045.1,0.001]
[1770626172193,0.0735222,2045.9,2045.1,0.001]
[1770626172800,1.22201583,2045.8,2045.1,0.001]
[1770626175017,10.34302775,2045.7,2044.9,0.001]
[1770626175496,1.22201583,2045.8,2044.9,0.001]
[1770626175694,10.41654995,2045.6,2044.7,0.001]
[1770626175895,10.34302775,2045.4,2044.2,4.07923733]
[1770626176104,10.44542775,2045.4,2044.2,4.07923733]
[1770626176305,0.0735222,2045.6,2044.4,4.07923733]
[1770626177122,1.22219506,2045.5,2044.4,4.07923733]
[1770626178092,1.22219506,2045.5,2044.4,5.30208924]
[1770626178291,1.2219561,2045.9,2044.5,3.88454885]
[1770626178520,1.2954783,2045.9,2044.5,3.88454885]
[1770626179589,1.2954783,2045.9,2044.6,3.88454885]
[1770626179994,10.41654995,2045.6,2044.6,3.88454885]
[1770626180198,10.41654995,2045.6,2044.2,3.88454885]
[1770626180402,1.2954783,2045.9,2044.6,3.88454885]
[1770626181228,1.2954783,2045.9,2044.7,3.88454885]
[1770626181927,0.0735222,2045.6,2044.3,3.88454885]
[1770626182468,1.2219561,2045.9,2044.5,3.88454885]
[1770626182589,1.2219561,2045.9,2044.9,3.88454885]
[1770626183225,0.002,2046.1,2044.9,3.88454885]
[1770626183423,0.002,2046.1,2045.0,3.88454885]
[1770626183717,0.002,2046.1,2045.2,3.88454885]
[1770626185337,0.002,2046.1,2045.6,3.88454885]
[1770626185554,0.002,2046.3,2045.8,3.88454885]
[1770626185717,0.002,2046.7,2045.4,3.88454885]
[1770626185906,0.002,2046.7,2045.8,3.88454885]
[1770626186114,0.002,2046.7,2046.0,3.88454885]
[1770626186331,0.002,2046.7,2046.2,3.88454885]
[1770626186553,0.002,2047.2,2046.4,3.88454885]
[1770626186852,1.223184,2047.2,2046.4,3.88454885]
[1770626187414,0.0755222,2047.2,2046.0,3.88454885]
[1770626188632,0.002,2047.2,2046.3,3.88454885]
[1770626188833,0.0755222,2047.2,2046.0,3.88454885]
[1770626189046,0.002,2047.2,2046.3,3.88454885]
[1770626189242,0.002,2047.2,2046.5,3.88454885]
[1770626189549,0.002,2047.2,2046.7,3.88454885]
[1770626189859,0.34543288,2047.8,2046.7,3.88454885]
[1770626190069,4.95498601,2048.6,2047.2,3.88454885]
[1770626190349,4.95498601,2048.6,2046.9,3.88454885]
[1770626190550,0.0735222,2048.3,2047.1,3.88454885]
[1770626190761,0.0735222,2047.6,2047.1,3.88454885]
[1770626190929,0.0735222,2047.3,2047.1,3.88454885]
[1770626191120,0.0735222,2047.3,2046.4,5.10615873]
[1770626191322,0.0735222,2047.0,2046.6,3.88454885]
[1770626191627,1.29467914,2047.3,2046.6,3.88454885]
[1770626192224,4.88408129,2047.5,2046.7,12.49933785]
[1770626192419,0.0735222,2047.3,2046.7,3.88454885]
[1770626193232,4.88408129,2047.5,2046.8,4.682862]
[1770626193426,1.29449942,2047.6,2046.8,3.88454885]
[1770626193832,4.88332701,2047.8,2047.0,3.88454885]
[1770626194459,1.29433006,2047.9,2047.0,3.88454885]
[1770626194751,1.22073277,2048.0,2047.2,3.88454885]
[1770626194957,1.22068856,2048.1,2047.2,3.88454885]
[1770626195266,1.22040517,2048.5,2047.5,3.88454885]
[1770626195463,0.0735222,2047.5,2046.9,3.88454885]
[1770626195845,0.07208676,2047.5,2046.9,3.88454885]
[1770626196178,0.0735222,2047.9,2046.9,3.88454885]
[1770626196342,0.0735222,2047.6,2046.9,3.88454885]
[1770626196665,0.0735222,2047.9,2046.5,4.88638979]
[1770626196666,0.002,2048.3,2047.1,3.88454885]
[1770626196874,0.0735222,2048.1,2047.1,3.88454885]
[1770626197031,0.0735222,2048.1,2046.7,3.88454885]
[1770626197032,0.0735222,2047.8,2046.7,3.88454885]
[1770626197566,1.22070312,2048.0,2046.9,3.88454885]
[1770626198039,0.0735222,2047.9,2046.9,3.88454885]
[1770626198240,0.0735222,2047.6,2046.9,3.88454885]
[1770626198434,0.0735222,2047.6,2046.4,3.88454885]
[1770626198650,0.0735222,2047.6,2046.6,5.10605005]
[1770626198851,0.0735222,2047.6,2046.7,3.88454885]
[1770626199375,0.0735222,2047.6,2045.6,4.88853997]
[1770626199376,1.22118014,2047.2,2046.3,3.88454885]
[1770626201761,1.22118014,2047.2,2046.4,3.88454885]
[1770626202068,4.8840556,2047.5,2046.4,3.88454885]
[1770626202069,4.88416954,2047.5,2046.4,3.88454885]
[1770626202283,1.22088196,2047.7,2046.4,3.88454885]
[1770626202569,1.22088196,2047.7,2046.7,3.88454885]
[1770626203743,1.22058392,2048.2,2046.9,3.88454885]
[1770626203981,0.0735222,2048.0,2046.9,3.88454885]
[1770626204279,1.22058392,2048.2,2046.9,3.88454885]
[1770626204575,0.0735222,2048.0,2046.9,3.88454885]
[1770626205149,1.22058392,2048.2,2047.1,3.92482668]
[1770626205549,1.22257044,2048.3,2047.1,3.92482668]
[1770626205750,1.22064352,2048.1,2047.1,3.92482668]
[1770626207281,0.0735222,2047.9,2047.1,3.92482668]
[1770626207480,0.0735222,2047.6,2046.7,3.92482668]
[1770626207644,0.0735222,2047.6,2046.8,3.92482668]
[1770626207860,1.22100122,2047.5,2046.8,3.92482668]
[1770626208093,0.0735222,2047.3,2046.2,3.92482668]
[1770626208393,1.22100122,2047.5,2046.4,3.92482668]
[1770626208567,0.0735222,2047.3,2046.4,3.92482668]
[1770626209706,0.0735222,2047.3,2047.0,0.001]
[1770626209875,1.22118014,2047.2,2046.4,3.92482668]
[1770626210881,1.22118014,2047.2,2046.2,0.001]
[1770626210882,1.29470234,2047.2,2046.2,0.001]
[1770626211306,0.0735222,2046.9,2046.2,0.001]
[1770626211772,0.0735222,2046.9,2045.1,4.88963698]
[1770626211773,0.0735222,2046.6,2045.7,3.92482668]
[1770626212101,1.22159784,2046.5,2045.7,3.92482668]
[1770626213575,1.22159784,2046.5,2045.4,6.95250668]
[1770626213776,1.22159784,2046.5,2045.5,1.2221607]
[1770626214009,1.2214188,2046.8,2045.6,3.92482668]
[1770626214275,0.0735222,2046.6,2045.6,3.92482668]
[1770626215106,1.2214188,2046.8,2045.7,3.92482668]
[1770626216106,1.2214188,2046.8,2045.9,3.92482668]
[1770626216310,0.0735222,2046.6,2045.3,3.92482668]
[1770626216513,0.0735222,2046.3,2045.4,8.78652868]
[1770626216676,0.0735222,2046.6,2045.4,3.92482668]
[1770626217824,0.0735222,2046.3,2045.4,3.92482668]
[1770626218025,0.0735222,2046.3,2045.0,3.92482668]
[1770626218216,1.2219561,2045.9,2045.0,3.92482668]
[1770626220017,1.2219561,2045.9,2044.8,3.292]
[1770626220189,1.22177695,2046.2,2045.1,24.176129]
[1770626220395,1.22177695,2046.2,2045.4,3.92482668]
[1770626220714,1.22177695,2046.2,2045.0,3.92482668]
[1770626220715,1.29529915,2046.2,2045.0,3.92482668]
[1770626221089,0.0735222,2045.9,2045.6,0.001]
[1770626221294,0.0735222,2045.9,2044.7,3.92482668]
[1770626221596,1.29529915,2046.2,2045.4,0.001]
[1770626222204,1.22177695,2046.2,2045.4,0.001]
[1770626223412,1.22177695,2046.2,2045.4,3.92582668]
[1770626225835,0.0735222,2046.0,2045.4,3.92582668]
[1770626226010,0.0735222,2046.0,2045.4,0.001]
[1770626226330,1.2219561,2045.9,2045.4,0.001]
[1770626228233,0.0735222,2046.5,2045.4,3.92582668]
[1770626228433,1.22147847,2046.8,2045.6,3.92482668]
[1770626228641,0.0735222,2046.6,2045.6,3.92482668]
[1770626228943,1.22147847,2046.8,2045.6,3.92482668]
[1770626229244,0.0735222,2046.6,2045.6,3.92482668]
[1770626229814,0.0735222,2046.3,2045.6,3.92482668]
[1770626230214,1.22147847,2046.8,2045.7,3.92482668]
[1770626230420,1.22138141,2046.9,2045.7,3.92482668]
[1770626230635,1.22138141,2046.9,2045.9,3.92482668]
[1770626231241,0.002,2047.0,2046.1,3.92482668]
[1770626231445,0.002,2047.0,2046.3,3.92482668]
[1770626232440,0.002,2047.0,2046.4,3.92482668]
[1770626234431,0.002,2047.0,2046.5,3.92482668]
[1770626234627,0.002,2047.2,2046.7,3.92482668]
[1770626235022,1.22070312,2048.0,2046.7,3.92482668]
[1770626235338,0.002,2046.8,2046.7,3.71962754]
[1770626235642,0.002,2047.0,2046.8,9.89037754]
[1770626235839,0.002,2047.0,2046.4,1.22160541]
[1770626235840,1.22070312,2048.0,2046.9,3.71962754]
[1770626236743,0.0735222,2047.8,2046.5,3.71962754]
[1770626237042,0.0735222,2047.5,2046.5,3.71962754]
[1770626237929,0.0735222,2047.5,2046.6,3.81392215]
[1770626239049,1.22106085,2047.4,2046.6,3.81392215]
[1770626239232,1.22106085,2047.4,2046.7,3.81392215]
[1770626239434,1.22088196,2047.7,2046.7,3.81392215]
[1770626240625,1.22088196,2047.7,2046.9,3.81392215]
[1770626241437,1.22088196,2047.7,2046.5,3.81392215]
[1770626241647,0.0735222,2047.5,2046.5,3.81392215]
[1770626241849,11.26105548,2047.2,2045.7,3.81392215]
[1770626242029,0.0735222,2046.9,2045.8,3.81392215]
[1770626242364,11.26105548,2047.2,2045.8,3.81392215]
[1770626242564,0.0735222,2047.2,2046.1,3.81392215]
[1770626242924,0.0735222,2047.2,2046.1,5.03572231]
[1770626243122,11.18753328,2047.6,2046.1,3.81392215]
[1770626243354,1.29440416,2047.7,2046.3,3.81392215]
[1770626243355,1.22088196,2047.7,2046.3,3.81392215]
[1770626243850,1.22088196,2047.7,2046.7,3.81392215]
[1770626244238,1.22088196,2047.7,2046.9,3.81392215]
[1770626244836,0.0735222,2047.5,2046.1,3.81392215]
[1770626245045,0.0735222,2047.5,2046.3,3.81392215]
[1770626245229,1.22088196,2047.7,2046.5,3.81392215]
[1770626245629,0.0735222,2047.5,2046.5,3.81392215]
[1770626245849,0.0735222,2047.5,2046.1,5.03574636]
[1770626246053,1.22088196,2047.7,2046.6,3.81392215]
[1770626247449,1.22088196,2047.7,2046.9,0.001]
[1770626247854,0.002,2047.5,2046.9,0.001]
[1770626248054,0.002,2047.5,2046.9,3.81492215]
[1770626249269,0.002,2047.5,2046.9,0.001]
[1770626252648,0.002,2047.5,2046.5,3.81392215]
[1770626252848,0.002,2047.5,2046.6,3.81392215]
[1770626253050,0.002,2047.5,2046.9,3.81392215]
[1770626254192,0.002,2047.5,2047.0,3.81392215]
[1770626254346,0.002,2047.5,2047.2,3.81392215]
[1770626254840,1.22076273,2047.9,2047.2,3.81392215]
[1770626255738,0.002,2048.1,2047.3,5.03504265]
[1770626256368,0.002,2048.1,2047.3,3.81392215]
[1770626257861,0.002,2048.1,2046.9,5.03528011]
[1770626258061,0.002,2048.1,2047.0,5.03521438]
[1770626258257,0.002,2048.1,2047.0,5.0352203]
[1770626258463,0.002,2048.1,2047.2,3.81392215]
[1770626258662,0.002,2048.1,2047.3,3.81392215]
[1770626259369,0.002,2048.1,2047.0,3.81392215]
[1770626259551,0.002,2048.1,2046.8,1.22141808]
[1770626259552,0.0735222,2048.0,2046.8,1.22141808]
[1770626259874,0.0735222,2048.0,2046.8,3.81392215]
[1770626260169,1.22076273,2047.9,2046.8,3.81392215]
[1770626260658,1.22076273,2047.9,2046.9,3.81392215]
[1770626260860,0.002,2048.1,2047.1,3.81392215]
[1770626261175,1.22264813,2048.1,2047.4,0.001]
[1770626261672,0.002,2047.9,2047.4,0.001]
[1770626265284,0.002,2047.9,2047.4,3.49841028]
[1770626265751,0.002,2047.9,2047.4,0.001]
[1770626266152,0.002,2047.9,2047.4,3.49841028]
[1770626270497,0.002,2047.9,2047.4,4.71944809]
[1770626270859,0.002,2047.9,2047.4,3.49841028]
[1770626271191,0.002,2047.9,2047.4,4.71946543]
[1770626271367,0.002,2047.9,2047.5,3.49741028]
[1770626271568,0.002,2047.9,2047.4,0.001]
[1770626274681,0.002,2047.7,2047.4,0.001]
[1770626274997,0.002,2047.9,2047.4,3.49841028]
[1770626276833,0.002,2047.9,2047.6,3.49741028]
[1770626277107,0.002,2048.1,2047.6,3.49741028]
[1770626278382,0.002,2048.3,2047.8,3.49741028]
[1770626278681,0.002,2048.5,2047.9,3.49741028]
[1770626278881,0.002,2048.5,2048.0,3.49741028]
[1770626279600,0.002,2048.5,2047.7,4.71828817]
[1770626279780,0.002,2048.5,2047.7,3.49741028]
[1770626280302,0.002,2048.5,2047.7,8.38073559]
[1770626280474,0.002,2048.5,2047.7,3.49741028]
[1770626280903,0.002,2048.5,2047.8,3.49741028]
[1770626281692,0.002,2048.5,2047.7,1.29437676]
[1770626281693,0.002,2048.5,2048.1,3.49741028]
[1770626281895,0.10476664,2048.7,2048.2,3.49741028]
[1770626282904,0.07565262,2048.7,2048.4,3.49741028]
[1770626283111,0.002,2049.4,2048.4,3.49741028]
[1770626283112,1.21996286,2049.3,2048.4,3.49741028]
[1770626283430,0.002,2049.4,2048.7,3.49741028]
[1770626283630,1.22188918,2049.4,2048.7,3.49741028]
[1770626283978,0.002,2049.4,2048.7,3.49741028]
[1770626284516,0.002,2049.4,2048.9,3.49741028]
[1770626284700,0.002,2049.4,2048.5,3.49741028]
[1770626284701,1.22187698,2049.4,2048.5,3.49741028]
[1770626284874,0.002,2049.4,2048.7,4.71769631]
[1770626285078,0.002,2049.4,2048.8,3.49741028]
[1770626286914,0.002,2049.4,2048.9,3.49741028]
[1770626287080,0.002,2049.4,2048.8,1.22020014]
[1770626287081,0.002,2049.4,2048.8,3.49741028]
[1770626287284,0.002,2049.4,2048.9,3.49741028]
[1770626289122,0.002,2049.4,2049.0,3.49741028]
[1770626291209,0.002,2049.4,2049.2,3.49741028]
[1770626291391,0.01664074,2049.9,2049.2,3.49741028]
[1770626291725,0.01664074,2049.9,2049.3,3.49741028]
[1770626292992,0.01664074,2049.9,2049.4,1.21986923]
[1770626293194,0.002,2050.3,2049.5,3.49741028]
[1770626293622,0.002,2050.3,2049.7,3.49741028]
[1770626293833,0.002,2050.3,2049.8,3.49741028]
[1770626294017,0.002,2050.3,2049.9,3.49741028]
[1770626294187,0.002,2050.7,2050.1,3.49741028]
[1770626294825,0.002,2051.0,2050.3,3.49741028]
[1770626295024,0.002,2051.0,2050.4,4.71668456]
[1770626295314,0.002,2051.0,2050.4,3.49741028]
[1770626295486,1.56702195,2051.6,2050.8,3.51477237]
[1770626295688,1.21861075,2051.6,2050.5,3.78015]
[1770626296245,1.21861075,2051.6,2050.2,8.3609045]
[1770626296246,10.3167998,2051.5,2050.2,3.41]
[1770626296524,10.3167998,2051.5,2050.1,3.51477237]
[1770626297087,10.3167998,2051.5,2049.8,4.73435819]
[1770626297088,1.21867992,2051.4,2049.8,4.73435819]
[1770626297304,1.21867992,2051.4,2049.9,3.51477237]
[1770626297305,2.66854456,2051.3,2049.9,3.51477237]
[1770626297517,2.49262236,2051.3,2049.9,3.51477237]
[1770626297711,2.49262236,2051.3,2050.1,1.21942123]
[1770626297916,1.21867992,2051.4,2050.1,4.6058698]
[1770626298211,1.21867992,2051.4,2050.1,3.38644857]